Cogmind - Beta 17.1 @@@ ROGUE MODE // 2026.09.01 @ 13:10:32 Player: Finn Result: Destroyed by G-50 Soldier with Heavy Laser Performance ------------- Evolutions (3) 1500 Regions Visited (4) 800 Robots Destroyed (31) 155 Value Destroyed (898) 898 Prototype IDs (1) 20 Alien Tech Used (0) 0 Bonus (0) 0 TOTAL SCORE: 3373 Bonus ------- None Cogmind --------- Core Integrity 0/700 Matter 262/300 Energy 62/100 System Corruption 4% Temperature Cool (9) Movement Core (200) Ox3 Location -7/Factory Parts ------- > --- POWER (1) -------- (None) > --- PROPULSION (2) --- (None) > --- UTILITY (8) ------ Component Analysis Suite > --- WEAPON (2) ------- High-powered Shotgun Gauss Cannon > --- INVENTORY (5) ---- Advanced Visual Processing Unit Peak State ------------ > --- POWER ------------ Deuterium Engine > --- PROPULSION ------- Titanium Leg Improved Carbon-fiber Leg > --- UTILITY ---------- Seismic Detector Core Analyzer Matter Filter Matter Filter Matter Filter Component Analysis Suite Component Analysis Suite > --- WEAPON ----------- High-powered Shotgun Gauss Rifle > --- INVENTORY -------- Medium Treads Seismic Detector Particle Gun High-powered Shotgun Gauss Rifle [Rating: 43] Favorites ----------- Power Deuterium Engine Engine Deuterium Engine Power Core Light Nuclear Core Propulsion Improved Carbon-fiber Leg Treads Medium Treads Leg Improved Carbon-fiber Leg Wheel Compact Wheel Utility Matter Filter Device Matter Filter Storage Small Storage Unit Processor Core Analyzer Protection Light Armor Plating Weapon High-powered Shotgun Energy Gun EM Pulse Gun Ballistic Gun High-powered Shotgun Ballistic Cannon Advanced Assault Cannon Build | -11 -10 -9 -8 -7 ------- Run | Yrd Mat Mat Mat Fac Slots Evolved 6 | . . 2 2 2 Power . | . . . . . Propulsion . | . . . . . Utility 6 | . . 2 2 2 Weapon . | . . . . . Parts Attached 39 | 7 2 5 3 22 Power 5 | 1 . 1 1 2 Engine 4 | 1 . 1 . 2 Core 1 | . . . 1 . Reactor . | . . . . . Propulsion 5 | 2 . . . 3 Treads 1 | . . . . 1 Leg 2 | . . . . 2 Wheel 2 | 2 . . . . Hover . | . . . . . Flight . | . . . . . Utility 14 | 2 . 2 1 9 Device 9 | 1 . 1 . 7 Storage 2 | 1 . . . 1 Processor 1 | . . . . 1 Hackware . | . . . . . Protection 2 | . . 1 1 . Artifact . | . . . . . Weapon 15 | 2 2 2 1 8 Energy Gun 4 | 1 1 . . 2 Energy Cannon . | . . . . . Ballistic Gun 8 | 1 1 2 . 4 Ballistic Cannon 3 | . . . 1 2 Launcher . | . . . . . Special Weapon . | . . . . . Impact Weapon . | . . . . . Slashing Weapon . | . . . . . Piercing Weapon . | . . . . . Special Melee Weapon . | . . . . . Unidentified Prototypes 1 | . . . . 1 Parts Lost 32 | . 5 6 5 16 Power 5 | . 1 1 1 2 Propulsion 3 | . 1 1 . 1 Utility 12 | . 1 2 2 7 Weapon 12 | . 2 2 2 6 Highest Loss Streak 8 | . 4 6 5 8 To Critical Strikes . | . . . . . Average Backups 3 | 2 3 1 . 3 Power . | . 1 1 . . Propulsion . | . . . . . Utility . | . . . . . Weapon 1 | . . . . 2 Tool/Special . | . . . . . Unused Backups 2 | . . . . 2 Power . | . . . . . Propulsion . | . . . . . Utility 1 | . . . . 1 Weapon 1 | . . . . 1 Tool/Special . | . . . . . Average Slot Usage (%) 67 | . 96 60 17 63 Engine 7 | . 13 8 . 6 Leg 5 | . . . . 8 Wheel 6 | . 27 9 . . Device 20 | . 13 3 . 28 Storage 4 | . 14 11 8 . Processor 2 | . . . . 3 Protection 1 | . . 8 2 . Energy Gun 3 | . 10 9 . . Ballistic Gun 12 | . 16 11 1 12 Peak Build Rating 43 | 7 7 7 8 43 Average Rating 20 | 4 6 5 3 30 On Entrance 2 | . 7 4 1 . Avg Prop Armor Cover (%) . | . . . . . Naked Turns 29 | . . . 18 11 Heaviest Build 31 | 13 13 14 13 31 Greatest Support 35 | 26 26 16 3 35 Greatest Overweight (x) 9 | . . 2 4 9 Average Overweight (x) . | . . . 1 . Largest Inventory Capacity 15 | 8 8 8 8 15 Average Capacity 6 | 6 8 8 7 5 Most Carried 5 | 4 5 4 2 5 Average Carried 3 | 1 3 1 . 3 Final Capacity 8 | 8 8 8 5 5 Final Carried 3 | 2 3 2 . 1 Class Distribution -------------------- 100% | Mutant Dominant Class ---------------- Mutant | -10/Materials Mutant | -9/Materials Mutant | -8/Materials Mutant | -7/Factory Resources | -11 -10 -9 -8 -7 ----------- Run | Yrd Mat Mat Mat Fac Matter Collected 792 | 184 84 13 . 511 Remotely . | . . . . . Salvage Created 960 | 25 259 138 . 538 Parts 56 | 1 21 13 . 21 Haulers Intercepted . | . . . . . Recyclers Shooed . | . . . . . Parts Field Recycled . | . . . . . Retrieved Matter . | . . . . . Parts Self-Destructed . | . . . . . Prevented . | . . . . . Parts Restored . | . . . . . Kills | -11 -10 -9 -8 -7 ------- Run | Yrd Mat Mat Mat Fac Combat Hostiles Destroyed 27 | . 9 6 . 12 Guns 22 | . 8 6 . 8 Cannons 4 | . . . . 4 AOE 1 | . 1 . . . Classes Destroyed 6 | 1 3 . . 2 Worker 2 | . . . . 2 Tunneler 1 | 1 . . . . Watcher 1 | . 1 . . . Swarmer 10 | . 6 4 . . Grunt 16 | . 3 2 . 11 Programmer 1 | . . . . 1 Best Kill Streak 4 | 1 3 4 . 3 Combat Bots Only 4 | . 3 4 . 3 Max Kills in Single Turn 1 | 1 1 1 . 1 Gunslinging . | . . . . . Exploded 1 | . 1 . . . Melee . | . . . . . Uniques/NPCs Destroyed . | . . . . . Combat | -11 -10 -9 -8 -7 -------- Run | Yrd Mat Mat Mat Fac Hostile Shots Fired 444 | . 50 88 112 194 Missed 139 | . 14 26 30 69 Hits 305 | . 36 62 82 125 Melee 1 | . . 1 . . Projectile 304 | . 36 61 82 125 Critical Strikes 16 | . . 5 3 8 Damage Taken 4202 | . 377 776 972 2077 Core 1627 | . 65 334 518 710 Absorbed by Shields . | . . . . . Core Remaining (%) 48 | 100 74 16 5 . Volleys Fired 128 | 4 33 33 5 53 Largest 2 | 1 2 2 1 2 Hottest 138 | 20 60 60 37 138 Shots Fired 223 | 4 57 58 5 99 Gun 200 | 4 57 58 2 79 Cannon 23 | . . . 3 20 Launcher . | . . . . . Special . | . . . . . Kinetic 169 | 4 39 36 5 85 Thermal 37 | . 1 22 . 14 Explosive . | . . . . . Electromagnetic 17 | . 17 . . . Robot Hit Streak 16 | 4 6 16 10 9 Robot Miss Streak 11 | . 6 2 6 11 Penetration Max 1 | . . . . 1 Secondary Targets 3 | . . 3 . . Max Gunslinging Chain 1 | . . 1 . . Shots Hit Robots 147 | 4 31 43 4 65 Core Hits 61 | 1 17 10 4 29 Critical Kills . | . . . . . Critical Parts Destroyed 1 | 1 . . . . Critical Strikes 3 | 1 1 . . 1 Destroy 1 | 1 . . . . Blast 1 | . . . . 1 Corrupt 1 | . 1 . . . Melee Attacks . | . . . . . Impact . | . . . . . Slashing . | . . . . . Piercing . | . . . . . Sneak Attacks . | . . . . . Combat Hostiles . | . . . . . Follow-up Attacks . | . . . . . Damage Inflicted 2522 | 57 413 405 78 1569 Guns 1912 | 57 382 393 17 1063 Cannons 518 | . . . 45 473 Explosions 31 | . 31 . . . Melee . | . . . . . Ramming 61 | . . 12 16 33 Kinetic 2062 | 57 255 221 62 1467 Thermal 272 | . 31 172 . 69 Explosive . | . . . . . Electromagnetic 127 | . 127 . . . Impact . | . . . . . Slashing . | . . . . . Piercing . | . . . . . Highest Corruption 4 | . . 2 . 4 Average Corruption 1 | . . 2 . 1 Corruption Purged . | . . . . . Corruption Blocked . | . . . . . Effects 8 | . . 1 . 7 Matter Fused 2 | . . . . 2 Heat Flow Errors 2 | . . . . 2 Energy Discharges 2 | . . . . 2 Data Loss (minor) 1 | . . 1 . . Data Loss (major) 1 | . . . . 1 Overload Shots . | . . . . . Overflow Damage 12 | . . . . 12 Projectiles 12 | . . . . 12 Explosions . | . . . . . Melee . | . . . . . Knockbacks 4 | . . . . 4 Impact . | . . . . . Kinetic 4 | . . . . 4 Secondary . | . . . . . Self-Inflicted Damage 45 | . 18 5 7 15 Shots 1 | . 1 . . . Rammed 16 | . . 6 3 7 Targets Rammed 16 | . . 6 3 7 Kicked . | . . . . . Crushed . | . . . . . Highest Temperature 348 | . 47 50 5 348 Average Temperature 53 | . 18 18 2 88 Received Heat Transfer 1182 | . 117 309 270 486 Effects 1 | . . . . 1 Energy Bleed 1 | . . . . 1 Siege Activations . | . . . . . Martial Activations . | . . . . . Shielding Activations . | . . . . . Robots Disrupted . | . . . . . Combat Hostiles . | . . . . . Robots Corrupted . | . . . . . Combat Hostiles . | . . . . . Parts Fried 1 | . 1 . . . Impact Corruptions . | . . . . . Robots Melted . | . . . . . Combat Hostiles . | . . . . . Parts Melted . | . . . . . Heat Transferred 561 | . 50 400 . 111 Parts Sabotaged . | . . . . . Parts Stolen . | . . . . . Parts Stripped . | . . . . . Power Chain Reactions 1 | . 1 . . . Alert | -11 -10 -9 -8 -7 ------- Run | Yrd Mat Mat Mat Fac Maximum Alert Level . | . . . . . Low Security (%) 100 | 100 100 100 100 100 Level 1 . | . . . . . Level 2 . | . . . . . Level 3 . | . . . . . Level 4 . | . . . . . Level 5 . | . . . . . High Security . | . . . . . Max Security . | . . . . . Peak Influence 113 | 5 113 95 . 84 Initial 8 | . . 8 . . Average 17 | . 30 21 . 14 Influence Increases 794 | 5 233 185 . 371 Destroy 0b10 Robot/C 540 | . 180 120 . 240 Destroy 0b10 Robot/NC 20 | 5 5 . . 10 Destroy Leader 82 | . 32 20 . 30 Successful Hack 14 | . . . . 14 Disable Machine 15 | . 15 . . . Destroy Structure 3 | . 1 . . 2 Lose Combat Pursuer 120 | . . 45 . 75 Influence Decreases 788 | 5 212 206 . 365 Entered New Map 13 | . . 13 . . Time Decay 450 | 5 162 78 . 205 Lost Part 260 | . 50 50 . 160 Purge Threat 65 | . . 65 . . Squads Dispatched 11 | . 1 3 . 7 Investigation 3 | . 1 1 . 1 Extermination 3 | . . . . 3 Reinforcement 5 | . . 2 . 3 Assault . | . . . . . Garrison . | . . . . . Intercept . | . . . . . Searches Triggered . | . . . . . Construction Impeded . | . . . . . Haulers Reinforced 1 | . . . . 1 Active Scanning Responses . | . . . . . Cargo Convoy Interrupts 1 | . . . . 1 Stealth | -11 -10 -9 -8 -7 --------- Run | Yrd Mat Mat Mat Fac Distress Signals 2 | . 1 1 . . Communications Jammed . | . . . . . Distress Signals . | . . . . . Times Spotted 69 | . 16 17 10 26 Peak Tracking Total 12 | . 3 9 12 9 Tactical Retreats 5 | . . 2 . 3 Traps | -11 -10 -9 -8 -7 ------- Run | Yrd Mat Mat Mat Fac Traps Triggered 2 | . . . . 2 Indirectly . | . . . . . Trap Hack Attempts . | . . . . . Triggered . | . . . . . Disarmed 6 | . 6 . . . Reprogrammed 6 | . . . . 6 Reused . | . . . . . Traps Extracted . | . . . . . Installed . | . . . . . Triggered . | . . . . . Machines | -11 -10 -9 -8 -7 ---------- Run | Yrd Mat Mat Mat Fac Machines Disabled 2 | . 2 . . . Max in Single Turn 1 | . 1 . . . Machines Repaired . | . . . . . Machines Dismantled . | . . . . . Machines Sabotaged . | . . . . . Overloaded Fab Kills . | . . . . . Hacking | -11 -10 -9 -8 -7 --------- Run | Yrd Mat Mat Mat Fac Machines Accessed 9 | . 2 3 . 4 Terminals 6 | . 1 2 . 3 Fabricators . | . . . . . Repair Stations . | . . . . . Recycling Units 3 | . 1 1 . 1 Scanalyzers . | . . . . . Garrison Access . | . . . . . Total Hacks 15 | . 3 5 . 7 Successful 4 | . 1 1 . 2 Failed 11 | . 2 4 . 5 Catastrophic 3 | . . 1 . 2 Database Lockouts . | . . . . . Manual . | . . . . . Terminals 11 | . 2 4 . 5 Fabricators . | . . . . . Repair Stations . | . . . . . Recycling Units 4 | . 1 1 . 2 Scanalyzers . | . . . . . Garrison Access . | . . . . . Terminal Hacks 4 | . 1 1 . 2 Unreport Threat 1 | . . 1 . . Disarm Traps 1 | . 1 . . . Reprogram Traps 1 | . . . . 1 Zone Layout 1 | . . . . 1 Fabricator Hacks . | . . . . . Repair Station Hacks . | . . . . . Recycling Unit Hacks . | . . . . . Scanalyzer . | . . . . . Garrison Access Hacks . | . . . . . Unauthorized Hacks . | . . . . . Terminals . | . . . . . Fabricators . | . . . . . Repair Stations . | . . . . . Recycling Units . | . . . . . Scanalyzers . | . . . . . Garrison Access . | . . . . . Data Cores Recovered . | . . . . . Used . | . . . . . Hacking Detections 7 | . 1 3 . 3 Full Trace Events 2 | . . 1 . 1 Feedback Events . | . . . . . Feedback Blocked . | . . . . . Robot Schematics Acquired . | . . . . . Robots Built . | . . . . . Authchips . | . . . . . Time . | . . . . . Total Robot Build Rating . | . . . . . Part Schematics Acquired . | . . . . . Parts Built . | . . . . . Authchips . | . . . . . Time . | . . . . . Total Part Build Rating . | . . . . . Part Studies Acquired . | . . . . . Parts Repaired . | . . . . . Time . | . . . . . Parts Recycled . | . . . . . Recycled Matter . | . . . . . Retrieved Matter . | . . . . . Retrieved Components . | . . . . . Parts Scanalyzed . | . . . . . Part Schematics Acquired . | . . . . . Parts Damaged . | . . . . . Bothacking | -11 -10 -9 -8 -7 ------------ Run | Yrd Mat Mat Mat Fac Used RIF Installer . | . . . . . Robots Hacked . | . . . . . Non-combat . | . . . . . Combat . | . . . . . Robot Hacks Applied . | . . . . . Relay Couplers Released . | . . . . . Fabnet Peak Effective % . | . . . . . Robots Rewired . | . . . . . Allies Hacked . | . . . . . Hacks Repelled . | . . . . . Allies | -11 -10 -9 -8 -7 -------- Run | Yrd Mat Mat Mat Fac Total Allies . | . . . . . Largest Group . | . . . . . Highest-Rated Group . | . . . . . Highest-Rated Ally . | . . . . . Total Orders . | . . . . . Ally Attacks . | . . . . . Total Damage . | . . . . . Kills . | . . . . . Allies Corrupted . | . . . . . Allies Melted . | . . . . . Intel | -11 -10 -9 -8 -7 ------- Run | Yrd Mat Mat Mat Fac Active Infowar (turns) 1617 | 20 553 88 . 956 Seismic 1617 | 20 553 88 . 956 Robot Analysis Total . | . . . . . Derelict Logs Recovered . | . . . . . Drone Launches . | . . . . . Drone Recoveries . | . . . . . Exploration | -11 -10 -9 -8 -7 ------------- Run | Yrd Mat Mat Mat Fac Turns Passed 2773 | 56 581 320 131 1685 Spaces Moved 1660 | 42 449 188 94 887 Core 409 | 13 . 35 94 267 Treads 100 | . . . . 100 Legs 520 | . . . . 520 Wheels 631 | 29 449 153 . . Hover . | . . . . . Flight . | . . . . . Fastest Speed 50 | 50 90 100 50 50 Average Speed 113 | 77 90 101 119 128 Slowest Speed 500 | 90 100 150 250 500 Overloaded Moves . | . . . . . Propulsion Burnouts . | . . . . . Robots Hopped . | . . . . . Potential Cave-ins . | . . . . . Cave-ins Triggered . | . . . . . Exploration Rate (%) 27 | 3 80 16 17 19 Regions Visited 4 Branch Regions . Pre-discovered Areas . | . . . . . Known Exits Taken . | . . . . . Unknown Exits Taken 4 | 1 1 1 1 . Scrap Searched . | . . . . . Spaces Dug . | . . . . . Terrain Destroyed 2 | . 1 . . 1 Melee . | . . . . . Projectile 1 | . . . . 1 AOE 1 | . 1 . . . Terrain Rammed . | . . . . . Walls Destroyed . | . . . . . Machines Disabled . | . . . . . Actions | -11 -10 -9 -8 -7 --------- Run | Yrd Mat Mat Mat Fac Total 2332 | 61 569 265 107 1330 Wait 446 | . 83 31 . 332 Move 1656 | 41 448 187 93 887 Hop . | . . . . . Pick Up 38 | 9 3 3 2 21 Fast Attach 5 | . . . . 5 Attach 37 | 7 2 4 4 20 Detach 1 | . . . . 1 Swap 3 | . . 1 . 2 Drop 2 | . . . . 2 Fire 128 | 4 33 33 5 53 Melee . | . . . . . Ram 16 | . . 6 3 7 Kick . | . . . . . Crush . | . . . . . Escape Stasis . | . . . . . Rewire . | . . . . . Trap . | . . . . . Miscellaneous . | . . . . . Route ------- -11/Scrapyard -10/Materials (discovered 3 exits: *Mat x2 / [*Min]) -9/Materials -8/Materials -7/Factory History --------- Turn | Location | Event 10 | -11/Scrapyard | Discovered new exit (range 15) 57 | -11/Scrapyard | Entered Materials 239 | -10/Materials | Discovered new exit (range 12) 308 | -10/Materials | Build established: Mutant 404 | -10/Materials | Discovered new exit (range 5) 628 | -10/Materials | Discovered new exit (range 3) 638 | -10/Materials | Entered another Materials area 638 | -9/Materials | Evolved 2 slots: Utility x2 641 | -9/Materials | Lost 4 parts (1p1n1u1w) 923 | -9/Materials | Core integrity fell below 50% 943 | -9/Materials | Discovered new exit (range 16) 946 | -9/Materials | Core integrity fell below 20% 958 | -9/Materials | Entered another Materials area 958 | -8/Materials | Evolved 2 slots: Utility x2 962 | -8/Materials | Lost 6 parts (1p1n2u2w) 1068 | -8/Materials | Core integrity fell below 50% 1075 | -8/Materials | Core integrity fell below 20% 1083 | -8/Materials | Discovered new exit (range 10) 1089 | -8/Materials | Entered Factory 1089 | -7/Factory | Evolved 2 slots: Utility x2 1102 | -7/Factory | Lost 5 parts (1p2u2w) 2220 | -7/Factory | Cargo convoy interrupted 2445 | -7/Factory | Lost 4 parts (3u1w) 2607 | -7/Factory | Lost 8 parts (1p1n3u3w) 2694 | -7/Factory | Core integrity fell below 50% 2739 | -7/Factory | Core integrity fell below 20% 2749 | -7/Factory | Lost 4 parts (1p1u2w) 2774 | -7/Factory | Destroyed by G-50 Soldier with Heavy Laser Last Messages --------------- 02702_ Hvy. Laser destroyed. 02702_ Core Analyzer destroyed. 02705_ Penetrated by Slug. 02708_ Overheating: Energy bleed (-19). 02716_ M-13 Machinist repairs P-60 Hacker. 02718_ Penetrated by Slug. 02718_ Hvy. Laser destroyed. 02721_ Penetrated by Slug. 02727_ U-05 Engineer destroyed. 02734_ O-24 Administrator: "IFF HANDSHAKE FAILED. SECURING TERMINAL." 02741_ O-24 Administrator uses terminal to summon reinforcements. 02741_ ALERT: Hostiles spotted, dispatching reinforcements to Terminal F017. 02741_ O-24 Administrator locks terminal. 02751_ System corrupted: Heat flow error (+148). 02756_ ALERT: Potential suspicious activity detected, Programmers report to Factory Zone 2A. Map ----- +----------------------------------------------------+ | ?????????????????????????????????????????????????? | | ?????????????????????????????????????????????????? | | ?????????????????????????????????????????????????? | | ?????????????????????????????????????????????????? | | ?????????????????????????????????????????????????? | | ?????????????????????????????????????????????????? | | ?????????????????????????????????????????????????? | | ?????????????????????????????????????????????????? | | ????????????????????????? ??????????????????????? | | ????????????????????????? "?????????????????????? | | ????????????????????????? "?????????????????????? | | ????????????????????????# ?????? ??????????????? | | ????????????????????????# u"" "? "?????????????? | | ????????????????????????# "F "" "?????????????? | | ????????????????????????+ """"" "?????????????? | | ????????????????????????# ??????????????? | | ????????????????????????# ???????????????? | | ???????????############## #????????????????? | | ???????????# # #????????????????? | | ???????????# ] # g #????????????????? | | ???????????# """" # gg #????????????????? | | ???????????# """" #g #????????????????? | | ???????????# """" ! # #????????????????? | | ???????????# """" ; +????????????????? | | ???????????# """" # #????????????????? | | ???????????? """" !!! #@ #????????????????? | | ?????????????"""" !!! # #????????????????? | | ???????????? !!! # ##########???????? | | ???????????# # #???????? | | ???????????# # #???????? | | ???????????############## #???????? | | ????????????????????????#k # ??????? | | ????????????????????????# + ??????? | | ????????????????????????# #???????? | | ????????????????????????# #???????? | | ????????????????????????# #???????? | | ????????????????????????# #???????? | | ?????????????????# #### #???????? | | ?????????????????# t #???????? | | ?????????????? #???????? | | ?????????????? +???????? | | ??????????????? #???????? | | ??????????????? #???????? | | ??????????????? #####+### #???????? | | ????????????????????????# #???????? | | ????????????????????????# #???????? | | ????????????????????????# #???????? | | ????????????????????????# #???????? | | ????????????????????????# #???????? | | ????????????????????????# #???????? | +----------------------------------------------------+ Best States ------------- Heat Dissipation 34 Energy Generation 18 Energy Capacity 310 Matter Stores 300 Matter Capacity 300 Sight Range 16 Terrain Scan Density 10 Armor Coverage 150 Resistance: EM 15 Evasion (%) 55 Core Analysis 6 Recoil Reduction 1 Matter Filtering 45 Item Schematics ----------------- None Robot Schematics ------------------ None Fabricated ------------ Nothing Repaired ---------- Nothing Studied --------- None Alien Tech Used ----------------- None Achievements -------------- Jackpot Challenges ------------ None Game ------ Seed CoolantAbsorptionPerforator Manual? 0 Play Time 00:22:46 Cumulative 27.1 hours Start 2026.09.01 @ 12:50:52 End 2026.09.01 @ 13:10:32 Sessions 1 Manual Loads 0 Difficulty Rogue Special Mode None Game No. 64 Rogue 47 Adventurer 15 Explorer 2 Win Type - Total 0 Types 0/0/0/0/0/0/0/0/0/0 Lore% 24 Gallery% 22 Achievement% 20 Wizard Run 0 Options --------- Layout 1 ASCII 0 Keyboard 0 Movement Mouse Keybinds 0 Fullscreen 1 Font 24/Smallcaps Map View 50x35 Zoom Use 0% Tactical HUD 1 Map Filters NONE Filters NONE Steam 1 RUN: 21555630-4083-4a04-8f88-18275ac95b19